fUST/lending_fUST_20250507
["ID","MTS","AMOUNT","RATE_DAILY","PERIOD"]
[360100448,1746550238336,-1766.1344616,0.00016872,2]
[360100450,1746550238346,-3259.67825476,0.00017772,2]
[360100452,1746550238356,-2392.32133508,0.000178,2]
[360100454,1746550238365,-172.07465134,0.00017859,2]
[360100456,1746550238375,-310.08691503,0.00017873,2]
[360100458,1746550238384,-500.0,0.00017873,2]
[360100460,1746550238393,-469.37536304,0.00017873,2]
[360100462,1746550238402,-500.0,0.00017873,2]
[360100464,1746550238411,-500.0,0.00017873,2]
[360100466,1746550238421,-500.0,0.00017873,2]
[360100468,1746550238430,-500.0,0.00017873,2]
[360100471,1746550238439,-500.0,0.00017873,2]
[360100474,1746550238449,-348.18323385,0.00017873,2]
[360100477,1746550238458,-500.0,0.00017873,2]
[360100480,1746550238467,-500.0,0.00017873,2]
[360100483,1746550238476,-500.0,0.00017873,2]
[360100486,1746550238486,-443.13375754,0.00017873,2]
[360100489,1746550238495,-500.0,0.00017873,2]
[360100493,1746550238509,-500.0,0.00017873,2]
[360100495,1746550238518,-500.0,0.00017873,2]
[360100497,1746550238527,-500.0,0.00017873,2]
[360100499,1746550238536,-502.50138684,0.00017873,2]
[360100501,1746550238545,-500.0,0.00017873,2]
[360100504,1746550238554,-1013.58,0.0001789,3]
[360100507,1746550238564,-506.79,0.0001789,3]
[360100509,1746550238574,-253.39,0.0001789,3]
[360100512,1746550238583,-760.21,0.0001789,3]
[360100515,1746550238593,-321.55,0.0001789,3]
[360100517,1746550238602,-96807.43354721,0.000179,2]
[360100522,1746550238618,-273192.56645279,0.000179,2]
[360100525,1746550238627,-5329.73167907,0.000179,2]
[360100527,1746550238638,-191050.0,0.00018,2]
[360100529,1746550238647,-1375.89623483,0.00018002,2]
[360100531,1746550238656,-2392.32133504,0.00018094,2]
[360100533,1746550238666,-151.0,0.000182,2]
[360100535,1746550238675,-191.4,0.00018369,2]
[360100537,1746550238684,-2392.32133504,0.00018387,2]
[360100539,1746550238694,-151.0,0.000184,2]
[360100541,1746550238703,-420.0,0.00018426,2]
[360100543,1746550238712,-5329.73167889,0.00018486,2]
[360100545,1746550238722,-151.0,0.000185,2]
[360100547,1746550238732,-613.55168602,0.00018549,2]
[360100550,1746550238742,-191.4,0.00018559,2]
[360100552,1746550238752,-500.0,0.0001863,2]
[360100554,1746550238761,-2392.32133504,0.00018681,2]
[360100556,1746550238771,-151.0,0.000187,2]
[360100558,1746550238780,-613.55168602,0.00018712,2]
[360100560,1746550238792,-155.0,0.00018739,2]
[360100562,1746550238802,-250.0,0.00018755,2]
[360100564,1746550238811,-151.0,0.000188,2]
[360100566,1746550238821,-337.18932208,0.00018895,2]
[360100568,1746550238831,-277.36581269,0.000189,2]
[360100570,1746550238840,-306.0,0.00018904,2]
[360100572,1746550238850,-2392.32133504,0.00018974,2]
[360100574,1746550238859,-78598.44909,0.00018999,2]
[360100576,1746550238869,-151.0,0.00019,2]
[360100578,1746550238878,-105437.0,0.00019,2]
[360100580,1746550238889,-5329.73167889,0.00019072,2]
[360100582,1746550238898,-150.87121571,0.00019078,2]
[360100584,1746550238907,-151.0,0.000191,2]
[360100586,1746550238917,-613.55168602,0.00019161,2]
[360100588,1746550238926,-500.0,0.00019173,2]
[360100590,1746550238935,-500.0,0.00019173,2]
[360100592,1746550238945,-557.86665131,0.00019173,2]
[360100594,1746550238954,-500.0,0.00019173,2]
[360100596,1746550238966,-500.0,0.00019173,2]
[360100598,1746550238975,-500.0,0.00019173,2]
[360100601,1746550238986,-500.0,0.00019173,2]
[360100603,1746550238999,-500.0,0.00019173,2]
[360100605,1746550239010,-500.0,0.00019173,2]
[360100607,1746550239020,-500.0,0.00019173,2]
[360100609,1746550239030,-500.0,0.00019173,2]
[360100611,1746550239040,-500.0,0.00019173,2]
[360100613,1746550239049,-500.0,0.00019173,2]
[360100615,1746550239059,-500.22940159,0.00019173,2]
[360100617,1746550239069,-500.0,0.00019173,2]
[360100620,1746550239080,-500.0,0.00019173,2]
[360100622,1746550239090,-500.0,0.00019173,2]
[360100624,1746550239101,-500.0,0.00019173,2]
[360100626,1746550239111,-500.0,0.00019173,2]
[360100628,1746550239120,-500.0,0.00019173,2]
[360100630,1746550239130,-500.30224403,0.00019173,2]
[360100632,1746550239140,-500.0,0.00019173,2]
[360100634,1746550239150,-500.0,0.00019173,2]
[360100636,1746550239160,-500.0,0.00019173,2]
[360100638,1746550239170,-500.55364994,0.00019173,2]
[360100640,1746550239179,-623.87666749,0.00019173,2]
[360100642,1746550239190,-500.0,0.00019173,2]
[360100645,1746550239200,-500.0,0.00019173,2]
[360100647,1746550239210,-500.0,0.00019173,2]
[360100649,1746550239219,-500.0,0.00019173,2]
[360100651,1746550239229,-500.0,0.00019173,2]
[360100653,1746550239239,-500.0,0.00019173,2]
[360100655,1746550239248,-555.09163379,0.00019173,2]
[360100657,1746550239258,-500.0,0.00019173,2]
[360100659,1746550239268,-500.0,0.00019173,2]
[360100661,1746550239277,-502.00234253,0.00019173,2]
[360100663,1746550239287,-500.0,0.00019173,2]
[360100665,1746550239296,-500.0,0.00019173,2]
[360100667,1746550239306,-500.0,0.00019173,2]
[360100669,1746550239316,-513.10292408,0.00019173,2]
[360100671,1746550239325,-445.44522005,0.00019173,2]
[360100673,1746550239334,-500.0,0.00019173,2]
[360100675,1746550239344,-500.0,0.00019173,2]
[360100677,1746550239354,-505.99404103,0.00019173,2]
[360100679,1746550239363,-500.0,0.00019173,2]
[360100681,1746550239373,-500.0,0.00019173,2]
[360100683,1746550239383,-500.0,0.00019173,2]
[360100685,1746550239393,-500.0,0.00019173,2]
[360100687,1746550239402,-500.0,0.00019173,2]
[360100689,1746550239411,-519.60099838,0.00019173,2]
[360100691,1746550239421,-500.34358694,0.00019173,2]
[360100693,1746550239430,-236.67787335,0.00019173,2]
[360100695,1746550239440,-500.0,0.00019173,2]
[360100697,1746550239450,-521.35594741,0.00019173,2]
[360100699,1746550239459,-500.34287887,0.00019173,2]
[360100701,1746550239469,-500.0,0.00019173,2]
[360100703,1746550239479,-500.0,0.00019173,2]
[360100705,1746550239489,-165.91508587,0.00019173,2]
[360100707,1746550239499,-500.0,0.00019173,2]
[360100709,1746550239508,-500.0,0.00019173,2]
[360100711,1746550239518,-500.0,0.00019173,2]
[360100714,1746550239527,-151.94334312,0.00019173,2]
[360100716,1746550239537,-203.49669118,0.00019178,2]
[360100718,1746550239546,-400.0,0.00019178,2]
[360100720,1746550239556,-400.0,0.00019178,2]
[360100722,1746550239566,-400.0,0.00019178,2]
[360100724,1746550239576,-400.0,0.00019178,2]
[360100726,1746550239586,-502.8703402,0.00019178,2]
[360100728,1746550239595,-500.0,0.00019178,2]
[360100730,1746550239605,-400.0,0.00019178,2]
[360100732,1746550239615,-400.0,0.00019178,2]
[360100734,1746550239624,-400.0,0.00019178,2]
[360100736,1746550239634,-400.0,0.00019178,2]
[360100738,1746550239643,-401.42416385,0.00019178,2]
[360100740,1746550239653,-153.94588979,0.00019178,2]
[360100742,1746550239663,-400.0,0.00019178,2]
[360100744,1746550239673,-400.0,0.00019178,2]
[360100746,1746550239683,-400.0,0.00019178,2]
[360100748,1746550239692,-449.36,0.00019178,2]
[360100750,1746550239702,-500.0,0.00019178,2]
[360100753,1746550239712,-400.0,0.00019178,2]
[360100755,1746550239722,-400.0,0.00019178,2]
[360100757,1746550239732,-400.0,0.00019178,2]
[360100759,1746550239741,-400.0,0.00019178,2]
[360100761,1746550239750,-502.1374089,0.00019178,2]
[360100763,1746550239759,-400.0,0.00019178,2]
[360100765,1746550239769,-502.34032409,0.00019178,2]
[360100767,1746550239779,-400.0,0.00019178,2]
[360100769,1746550239790,-400.0,0.00019178,2]
[360100771,1746550239800,-400.0,0.00019178,2]
[360100773,1746550239810,-400.0,0.00019178,2]
[360100775,1746550239820,-400.0,0.00019178,2]
[360100777,1746550239830,-403.34072284,0.00019178,2]
[360100779,1746550239840,-400.0,0.00019178,2]
[360100781,1746550239850,-501.97207744,0.00019178,2]
[360100783,1746550239860,-400.0,0.00019178,2]
[360100786,1746550239883,-400.0,0.00019178,2]
[360100789,1746550239894,-503.78798685,0.00019178,2]
[360100791,1746550239905,-473.40339252,0.00019178,2]
[360100793,1746550239915,-400.0,0.00019178,2]
[360100795,1746550239924,-402.94644609,0.00019178,2]
[360100797,1746550239934,-400.0,0.00019178,2]
[360100799,1746550239945,-209.64157535,0.00019178,2]
[360100801,1746550239955,-400.0,0.00019178,2]
[360100803,1746550239965,-400.0,0.00019178,2]
[360100805,1746550239976,-502.79430711,0.00019178,2]
[360100807,1746550239986,-400.0,0.00019178,2]
[360100809,1746550239996,-400.0,0.00019178,2]
[360100811,1746550240006,-400.0,0.00019178,2]
[360100813,1746550240016,-257.3214084,0.00019178,2]
[360100816,1746550240027,-400.0,0.00019178,2]
[360100818,1746550240037,-400.0,0.00019178,2]
[360100820,1746550240047,-503.10174603,0.00019178,2]
[360100822,1746550240056,-400.0,0.00019178,2]
[360100824,1746550240066,-400.0,0.00019178,2]
[360100826,1746550240079,-400.0,0.00019178,2]
[360100828,1746550240089,-235.51168844,0.00019178,2]
[360100830,1746550240099,-400.0,0.00019178,2]
[360100832,1746550240109,-400.0,0.00019178,2]
[360100834,1746550240119,-400.0,0.00019178,2]
[360100837,1746550240129,-400.0,0.00019178,2]
[360100839,1746550240139,-400.0,0.00019178,2]
[360100841,1746550240149,-289.66766909,0.00019178,2]
[360100843,1746550240159,-400.0,0.00019178,2]
[360100845,1746550240168,-400.0,0.00019178,2]
[360100847,1746550240178,-503.55866188,0.00019178,2]
[360100849,1746550240188,-400.0,0.00019178,2]
[360100851,1746550240197,-400.0,0.00019178,2]
[360100853,1746550240207,-400.0,0.00019178,2]
[360100855,1746550240216,-400.0,0.00019178,2]
[360100857,1746550240226,-400.0,0.00019178,2]
[360100859,1746550240236,-400.0,0.00019178,2]
[360100861,1746550240245,-400.0,0.00019178,2]
[360100863,1746550240254,-401.97286654,0.00019178,2]
[360100865,1746550240265,-400.0,0.00019178,2]
[360100867,1746550240275,-400.0,0.00019178,2]
[360100869,1746550240285,-282.09599566,0.00019178,2]
[360100871,1746550240295,-400.0,0.00019178,2]
[360100873,1746550240304,-405.98412562,0.00019178,2]
[360100875,1746550240314,-400.76641592,0.00019178,2]
[360100877,1746550240323,-400.0,0.00019178,2]
[360100880,1746550240334,-400.0,0.00019178,2]
[360100882,1746550240343,-400.0,0.00019178,2]
[360100884,1746550240353,-400.0,0.00019178,2]
[360100886,1746550240363,-400.0,0.00019178,2]
[360100888,1746550240372,-400.0,0.00019178,2]
[360100890,1746550240381,-400.0,0.00019178,2]
[360100892,1746550240391,-405.49127718,0.00019178,2]
[360100894,1746550240401,-400.0,0.00019178,2]
[360100896,1746550240411,-400.0,0.00019178,2]
[360100898,1746550240421,-400.0,0.00019178,2]
[360100900,1746550240430,-400.0,0.00019178,2]
[360100902,1746550240440,-400.0,0.00019178,2]
[360100904,1746550240450,-400.0,0.00019178,2]
[360100906,1746550240460,-407.37330949,0.00019178,2]
[360100908,1746550240470,-400.0,0.00019178,2]
[360100911,1746550240480,-403.25345902,0.00019178,2]
[360100913,1746550240489,-229.43161492,0.00019178,2]
[360100915,1746550240499,-400.0,0.00019178,2]
[360100917,1746550240509,-400.0,0.00019178,2]
[360100919,1746550240518,-400.0,0.00019178,2]
[360100921,1746550240528,-917.94,0.00019178,2]
[360100923,1746550240538,-400.0,0.00019178,2]
[360100925,1746550240547,-400.0,0.00019178,2]
[360100927,1746550240557,-400.0,0.00019178,2]
[360100929,1746550240567,-400.0,0.00019178,2]
[360100931,1746550240576,-205.07269539,0.00019178,2]
[360100933,1746550240586,-400.0,0.00019178,2]
[360100935,1746550240597,-400.0,0.00019178,2]
[360100937,1746550240607,-400.0,0.00019178,2]
[360100939,1746550240616,-400.0,0.00019178,2]
[360100941,1746550240625,-469.45726411,0.00019178,2]
[360100943,1746550240635,-400.0,0.00019178,2]
[360100945,1746550240645,-400.0,0.00019178,2]
[360100947,1746550240655,-400.0,0.00019178,2]
[360100949,1746550240664,-400.0,0.00019178,2]
[360100951,1746550240673,-400.0,0.00019178,2]
[360100953,1746550240683,-503.5525166,0.00019178,2]
[360100956,1746550240692,-400.0,0.00019178,2]
[360100958,1746550240701,-400.0,0.00019178,2]
[360100960,1746550240710,-400.0,0.00019178,2]
[360100962,1746550240720,-400.0,0.00019178,2]
[360100964,1746550240730,-400.0,0.00019178,2]
[360100966,1746550240739,-400.0,0.00019178,2]
[360100968,1746550240749,-400.0,0.00019178,2]
[360100987,1746550240928,-934.45,0.00019178,2]
[360100990,1746550240939,-400.0,0.00019178,2]
[360100992,1746550240948,-208.10094571,0.00019178,2]
[360100994,1746550240957,-507.22532263,0.00019178,2]
[360100996,1746550240967,-400.0,0.00019178,2]
[360100998,1746550240976,-205.50026287,0.00019178,2]
[360101000,1746550240986,-400.0,0.00019178,2]
[360101002,1746550240996,-400.0,0.00019178,2]
[360101004,1746550241005,-998.0,0.00019178,2]
[360101006,1746550241015,-400.0,0.00019178,2]
[360101008,1746550241024,-400.0,0.00019178,2]
[360101010,1746550241033,-506.19767012,0.00019178,2]
[360101012,1746550241043,-400.0,0.00019178,2]
[360101014,1746550241052,-400.0,0.00019178,2]
[360101016,1746550241062,-400.0,0.00019178,2]
[360101018,1746550241071,-400.0,0.00019178,2]
[360101020,1746550241081,-400.0,0.00019178,2]
[360101022,1746550241090,-400.0,0.00019178,2]
[360101024,1746550241100,-400.0,0.00019178,2]
[360101026,1746550241109,-400.0,0.00019178,2]
[360101028,1746550241119,-400.0,0.00019178,2]
[360101030,1746550241129,-400.0,0.00019178,2]
[360101032,1746550241153,-400.0,0.00019178,2]
[360101035,1746550241163,-401.70271421,0.00019178,2]
[360101037,1746550241172,-400.0,0.00019178,2]
[360101039,1746550241182,-400.0,0.00019178,2]
[360101041,1746550241191,-234.1504007,0.00019178,2]
[360101043,1746550241201,-400.0,0.00019178,2]
[360101045,1746550241210,-400.0,0.00019178,2]
[360101047,1746550241219,-400.0,0.00019178,2]
[360101049,1746550241228,-400.0,0.00019178,2]
[360101051,1746550241238,-400.0,0.00019178,2]
[360101053,1746550241247,-557.65,0.00019178,2]
[360101055,1746550241256,-400.0,0.00019178,2]
[360101057,1746550241266,-400.0,0.00019178,2]
[360101059,1746550241275,-403.35361379,0.00019178,2]
[360101061,1746550241285,-400.0,0.00019178,2]
[360101063,1746550241294,-400.0,0.00019178,2]
[360101065,1746550241303,-1052.77,0.00019178,2]
[360101067,1746550241313,-400.0,0.00019178,2]
[360101069,1746550241323,-400.0,0.00019178,2]
[360101071,1746550241333,-503.74238831,0.00019178,2]
[360101073,1746550241343,-401.33650777,0.00019178,2]
[360101075,1746550241352,-401.04113812,0.00019178,2]
[360101077,1746550241361,-400.0,0.00019178,2]
[360101079,1746550241370,-359.53149701,0.00019178,2]
[360101081,1746550241380,-400.0,0.00019178,2]
[360101083,1746550241389,-516.03,0.00019178,2]
[360101085,1746550241399,-400.0,0.00019178,2]
[360101087,1746550241408,-400.0,0.00019178,2]
[360101089,1746550241417,-582.88,0.00019178,2]
[360101091,1746550241426,-400.0,0.00019178,2]
[360101093,1746550241436,-671.69,0.00019178,2]
[360101095,1746550241445,-400.0,0.00019178,2]
[360101097,1746550241454,-400.0,0.00019178,2]
[360101099,1746550241463,-400.0,0.00019178,2]
[360101101,1746550241472,-400.0,0.00019178,2]
[360101103,1746550241482,-406.72015398,0.00019178,2]
[360101105,1746550241492,-400.0,0.00019178,2]
[360101107,1746550241502,-1358.88,0.00019178,2]
[360101109,1746550241511,-400.0,0.00019178,2]
[360101111,1746550241522,-400.0,0.00019178,2]
[360101113,1746550241531,-259.028416,0.00019178,2]
[360101115,1746550241541,-401.36702011,0.00019178,2]
[360101117,1746550241550,-500.0,0.00019178,2]
[360101119,1746550241559,-513.04252661,0.00019178,2]
[360101121,1746550241569,-400.0,0.00019178,2]
[360101123,1746550241578,-463.5,0.00019178,2]
[360101125,1746550241587,-400.0,0.00019178,2]
[360101127,1746550241596,-401.83508776,0.00019178,2]
[360101129,1746550241605,-400.0,0.00019178,2]
[360101131,1746550241615,-400.0,0.00019178,2]
[360101133,1746550241624,-400.0,0.00019178,2]
[360101135,1746550241633,-400.0,0.00019178,2]
[360101137,1746550241643,-400.0,0.00019178,2]
[360101139,1746550241652,-153.394978,0.00019178,2]
[360101141,1746550241661,-401.30563412,0.00019178,2]
[360101143,1746550241671,-400.0,0.00019178,2]
[360101145,1746550241680,-400.0,0.00019178,2]
[360101148,1746550241690,-400.0,0.00019178,2]
[360101150,1746550241700,-400.0,0.00019178,2]
[360101152,1746550241709,-400.0,0.00019178,2]
[360101154,1746550241718,-1994.82,0.00019178,2]
[360101155,1746550241727,-400.0,0.00019178,2]
[360101157,1746550241736,-400.0,0.00019178,2]
[360101159,1746550241745,-216.3917953,0.00019178,2]
[360101161,1746550241755,-400.17178998,0.00019178,2]
[360101163,1746550241764,-400.0,0.00019178,2]
[360101165,1746550241773,-400.0,0.00019178,2]
[360101167,1746550241783,-400.0,0.00019178,2]
[360101169,1746550241796,-400.0,0.00019178,2]
[360101171,1746550241805,-1428.88,0.00019178,2]
[360101173,1746550241814,-400.0,0.00019178,2]
[360101175,1746550241824,-984.36,0.00019178,2]
[360101176,1746550241835,-231.68795328,0.00019178,2]
[360101177,1746550241845,-400.0,0.00019178,2]
[360101178,1746550241855,-400.0,0.00019178,2]
[360101179,1746550241864,-585.31,0.00019178,2]
[360101180,1746550241875,-400.0,0.00019178,2]
[360101181,1746550241887,-400.0,0.00019178,2]
[360101182,1746550241897,-400.0,0.00019178,2]
[360101183,1746550241907,-625.03,0.00019178,2]
[360101184,1746550241917,-400.0,0.00019178,2]
[360101185,1746550241928,-400.0,0.00019178,2]
[360101186,1746550241939,-400.0,0.00019178,2]
[360101187,1746550241949,-400.0,0.00019178,2]
[360101189,1746550241958,-400.0,0.00019178,2]
[360101190,1746550241968,-400.0,0.00019178,2]
[360101191,1746550241977,-400.0,0.00019178,2]
[360101193,1746550241988,-400.0,0.00019178,2]
[360101195,1746550241997,-844.65,0.00019178,2]
[360101197,1746550242008,-585.18,0.00019178,2]
[360101199,1746550242017,-400.0,0.00019178,2]
[360101201,1746550242028,-400.0,0.00019178,2]
[360101203,1746550242037,-400.0,0.00019178,2]
[360101205,1746550242047,-2938.9,0.00019178,2]
[360101207,1746550242056,-400.0,0.00019178,2]
[360101209,1746550242066,-400.0,0.00019178,2]
[360101211,1746550242076,-608.74,0.00019178,2]
[360101213,1746550242086,-400.0,0.00019178,2]
[360101215,1746550242098,-1026.77,0.00019178,2]
[360101217,1746550242107,-400.0,0.00019178,2]
[360101219,1746550242117,-642.63,0.00019178,2]
[360101221,1746550242127,-400.0,0.00019178,2]
[360101223,1746550242138,-400.0,0.00019178,2]
[360101225,1746550242147,-425.58788198,0.00019178,2]
[360101227,1746550242157,-400.0,0.00019178,2]
[360101229,1746550242166,-474.87,0.00019178,2]
[360101231,1746550242175,-400.0,0.00019178,2]
[360101233,1746550242185,-400.13538946,0.00019178,2]
[360101235,1746550242194,-400.0,0.00019178,2]
[360101237,1746550242203,-400.0,0.00019178,2]
[360101239,1746550242213,-437.22,0.00019178,2]
[360101241,1746550242222,-400.0,0.00019178,2]
[360101243,1746550242232,-400.0,0.00019178,2]
[360101245,1746550242242,-400.0,0.00019178,2]
[360101247,1746550242251,-404.70681988,0.00019178,2]
[360101249,1746550242261,-400.0,0.00019178,2]
[360101251,1746550242270,-400.0,0.00019178,2]
[360101253,1746550242279,-400.0,0.00019178,2]
[360101255,1746550242289,-400.0,0.00019178,2]
[360101257,1746550242298,-400.0,0.00019178,2]
[360101259,1746550242307,-500.0,0.00019178,2]
[360101261,1746550242317,-500.0,0.00019178,2]
[360101263,1746550242326,-500.0,0.00019178,2]
[360101265,1746550242336,-400.0,0.00019178,2]
[360101267,1746550242346,-500.0,0.00019178,2]
[360101269,1746550242356,-500.0,0.00019178,2]
[360101271,1746550242365,-500.0,0.00019178,2]
[360101273,1746550242375,-500.0,0.00019178,2]
[360101275,1746550242384,-500.0,0.00019178,2]
[360101278,1746550242394,-500.0,0.00019178,2]
[360101280,1746550242403,-500.0,0.00019178,2]
[360101282,1746550242412,-500.0,0.00019178,2]
[360101284,1746550242422,-400.0,0.00019178,2]
[360101286,1746550242431,-400.0,0.00019178,2]
[360101288,1746550242440,-179.19424047,0.00019178,2]
[360101290,1746550242450,-400.0,0.00019178,2]
[360101292,1746550242459,-400.0,0.00019178,2]
[360101294,1746550242468,-415.3774956,0.00019178,2]
[360101296,1746550242478,-418.59343452,0.00019178,2]
[360101298,1746550242487,-532.82628806,0.00019178,2]
[360101300,1746550242498,-400.0,0.00019178,2]
[360101302,1746550242507,-400.0,0.00019178,2]
[360101304,1746550242517,-400.0,0.00019178,2]
[360101306,1746550242526,-400.0,0.00019178,2]
[360101308,1746550242535,-401.05920041,0.00019178,2]
[360101310,1746550242544,-400.0,0.00019178,2]
[360101312,1746550242553,-1181.51,0.00019178,2]
[360101314,1746550242563,-1181.51,0.00019178,2]
[360101316,1746550242572,-1181.51,0.00019178,2]
[360101318,1746550242581,-1181.51,0.00019178,2]
[360101320,1746550242591,-1181.51,0.00019178,2]
[360101322,1746550242600,-1181.51,0.00019178,2]
[360101324,1746550242609,-1181.51,0.00019178,2]
[360101326,1746550242619,-1181.51,0.00019178,2]
[360101328,1746550242628,-1181.51,0.00019178,2]
[360101330,1746550242637,-203.04065088,0.00019178,2]
[360101332,1746550242647,-1181.51,0.00019178,2]
[360101334,1746550242656,-1181.51,0.00019178,2]
[360101336,1746550242665,-1181.51,0.00019178,2]
[360101338,1746550242674,-1181.51,0.00019178,2]
[360101340,1746550242683,-1181.51,0.00019178,2]
[360101342,1746550242693,-1181.51,0.00019178,2]
[360101344,1746550242702,-1181.51,0.00019178,2]
[360101346,1746550242711,-1181.51,0.00019178,2]
[360101348,1746550242720,-1181.51,0.00019178,2]
[360101350,1746550242729,-1181.51,0.00019178,2]
[360101352,1746550242738,-1181.51,0.00019178,2]
[360101354,1746550242748,-1181.51,0.00019178,2]
[360101356,1746550242758,-400.0,0.00019178,2]
[360101358,1746550242767,-1181.51,0.00019178,2]
[360101360,1746550242777,-400.0,0.00019178,2]
[360101362,1746550242788,-1181.51,0.00019178,2]
[360101364,1746550242799,-1181.642461,0.00019178,2]
[360101366,1746550242808,-1732.06,0.00019178,2]
[360101368,1746550242817,-400.0,0.00019178,2]
[360101370,1746550242826,-400.0,0.00019178,2]
[360101373,1746550242837,-898.37,0.00019178,2]
[360101374,1746550242847,-400.0,0.00019178,2]
[360101377,1746550242856,-400.0,0.00019178,2]
[360101380,1746550242866,-400.0,0.00019178,2]
[360101381,1746550242876,-400.97084348,0.00019178,2]
[360101383,1746550242884,-400.0,0.00019178,2]
[360101385,1746550242893,-400.0,0.00019178,2]
[360101387,1746550242903,-400.0,0.00019178,2]
[360101390,1746550242913,-400.0,0.00019178,2]
[360101392,1746550242923,-400.0,0.00019178,2]
[360101394,1746550242932,-400.91459012,0.00019178,2]
[360101396,1746550242942,-400.0,0.00019178,2]
[360101399,1746550242951,-400.0,0.00019178,2]
[360101401,1746550242961,-1095.13,0.00019178,2]
[360101403,1746550242970,-400.0,0.00019178,2]
[360101405,1746550242979,-502.25070254,0.00019178,2]
[360101407,1746550242988,-428.54,0.00019178,2]
[360101409,1746550242998,-417.89,0.00019178,2]
[360101411,1746550243008,-400.0,0.00019178,2]
[360101413,1746550243017,-151.0,0.00019178,2]
[360101415,1746550243027,-400.0,0.00019178,2]
[360101417,1746550243036,-400.0,0.00019178,2]
[360101419,1746550243045,-319.65673398,0.00019178,2]
[360101421,1746550243054,-400.0,0.00019178,2]
[360101423,1746550243064,-400.0,0.00019178,2]
[360101425,1746550243074,-500.0,0.00019178,2]
[360101427,1746550243083,-500.0,0.00019178,2]
[360101429,1746550243093,-500.0,0.00019178,2]
[360101431,1746550243102,-458.42,0.00019178,2]
[360101433,1746550243112,-400.0,0.00019178,2]
[360101435,1746550243121,-208.60332497,0.00019178,2]
[360101437,1746550243130,-400.0,0.00019178,2]
[360101439,1746550243139,-5262.57,0.00019178,2]
[360101441,1746550243148,-400.0,0.00019178,2]
[360101443,1746550243158,-400.0,0.00019178,2]
[360101445,1746550243167,-1308.2,0.00019178,2]
[360101447,1746550243177,-400.0,0.00019178,2]
[360101449,1746550243186,-400.0,0.00019178,2]
[360101451,1746550243195,-400.0,0.00019178,2]
[360101453,1746550243204,-400.0,0.00019178,2]
[360101455,1746550243214,-516.26450725,0.00019178,2]
[360101457,1746550243223,-400.0,0.00019178,2]
[360101459,1746550243233,-1379.79,0.00019178,2]
[360101461,1746550243243,-374.12205141,0.00019178,2]
[360101463,1746550243251,-3412.15,0.00019178,2]
[360101465,1746550243260,-758.88,0.00019178,2]
[360101467,1746550243269,-400.0,0.00019178,2]
[360101469,1746550243279,-400.0,0.00019178,2]
[360101471,1746550243288,-400.0,0.00019178,2]
[360101473,1746550243297,-400.0,0.00019178,2]
[360101475,1746550243306,-402.39565763,0.00019178,2]
[360101477,1746550243315,-867.45,0.00019178,2]
[360101479,1746550243324,-1172.28,0.00019178,2]
[360101481,1746550243333,-424.31932119,0.00019178,2]
[360101483,1746550243343,-400.0,0.00019178,2]
[360101498,1746550243472,-400.0,0.00019178,2]